bitfinex-derivatives/quotes_ETHF0:USTF0_20240910
["timestamp","ask_amount","ask_price","bid_price","bid_amount"]
[1725992498400,11.52192076,2365.3,2364.7,1.19705]
[1725992498593,0.42282,2365.0,2364.7,0.7742]
[1725992498792,0.42283,2364.9,2364.7,1.19705]
[1725992498991,0.42282,2365.0,2364.7,1.19705]
[1725992499296,0.42282,2364.9,2364.7,1.19705]
[1725992499695,11.52192076,2365.3,2364.8,0.42283]
[1725992499897,0.42283,2364.9,2364.7,1.19705]
[1725992500398,1.05711,2364.8,2364.3,14.88292]
[1725992500701,1.05711,2364.8,2364.4,0.42291]
[1725992500702,0.42289,2364.6,2364.4,0.42291]
[1725992501497,8.59641819,2365.5,2364.3,14.88292]
[1725992501498,0.4229,2364.5,2364.3,14.88292]
[1725992501701,0.4229,2364.5,2364.3,10.82292]
[1725992502091,1.05702,2365.0,2364.3,10.4]
[1725992502294,0.42291,2364.4,2364.3,10.82293]
[1725992502499,0.42291,2364.4,2364.3,10.4]
[1725992502891,0.42291,2364.5,2364.3,0.42292]
[1725992503501,0.42291,2364.5,2364.2,0.4041]
[1725992503502,0.42291,2364.5,2364.4,0.42291]
[1725992503694,1.81327,2364.9,2364.2,0.82704]
[1725992503695,0.42293,2364.4,2364.2,0.82704]
[1725992504096,0.42293,2364.4,2364.2,0.4041]
[1725992504295,1.05716,2364.7,2364.3,0.42293]
[1725992504499,1.81328,2364.9,2364.2,0.4041]
[1725992504800,0.42285,2364.8,2364.3,1.05732]
[1725992504999,0.42285,2364.8,2364.2,4.4641]
[1725992505000,1.05694,2365.2,2364.6,0.42287]
[1725992505204,10.79012991,2365.0,2364.5,0.42288]
[1725992505399,11.84706991,2365.2,2364.5,0.42288]
[1725992505604,0.42288,2364.6,2364.5,0.42288]
[1725992505801,0.42288,2364.6,2364.4,0.4229]
[1725992506005,1.05708,2364.9,2364.3,0.42292]
[1725992506304,0.7628,2365.4,2364.2,1.46146]
[1725992506499,0.42287,2364.7,2364.5,0.42288]
[1725992506900,0.42288,2364.6,2364.2,0.4041]
[1725992508100,0.42287,2364.7,2364.5,0.42288]
[1725992508609,0.4229,2364.5,2364.2,0.4041]
[1725992508807,0.4229,2364.5,2364.4,0.42291]
[1725992509405,5.11694,2365.2,2364.2,0.82704]
[1725992509705,0.42293,2364.3,2364.2,0.82704]
[1725992510205,0.42293,2364.4,2364.2,0.82704]
[1725992510409,0.7455,2364.8,2364.2,0.4041]
[1725992510617,0.42293,2364.3,2364.2,0.4041]
[1725992510819,0.42295,2364.2,2364.0,0.3813]
[1725992511107,0.42295,2364.2,2364.1,0.42296]
[1725992511610,0.42295,2364.2,2363.9,10.4]
[1725992511611,0.42299,2364.0,2363.9,10.4]
[1725992512609,1.05739,2364.2,2363.8,0.3973]
[1725992512610,0.423,2363.9,2363.8,0.3973]
[1725992513312,1.05747,2364.0,2363.6,0.80845]
[1725992513505,0.398,2364.1,2363.7,0.42303]
[1725992513709,0.42303,2363.8,2363.6,0.80845]
[1725992514006,0.42304,2363.7,2363.6,0.80845]
[1725992514211,0.42303,2363.8,2363.6,0.80845]
[1725992514400,1.05749,2364.0,2363.3,0.82041]
[1725992514401,1.05747,2364.0,2363.3,0.82041]
[1725992514605,0.42307,2363.6,2363.4,0.42309]
[1725992514808,0.42308,2363.5,2363.3,0.8204]
[1725992515608,0.42309,2363.4,2363.3,0.3973]
[1725992516009,0.42311,2363.3,2363.1,0.80814]
[1725992516312,0.42313,2363.2,2363.1,0.385]
[1725992516506,1.05756,2363.8,2363.1,0.385]
[1725992516507,0.42312,2363.3,2363.1,0.385]
[1725992517004,1.05765,2363.6,2363.1,0.385]
[1725992517214,0.42312,2363.3,2363.1,0.385]
[1725992517610,0.42313,2363.2,2363.1,0.385]
[1725992518109,1.05756,2363.8,2363.1,0.80815]
[1725992518303,1.05747,2364.0,2363.3,0.4231]
[1725992518504,0.42308,2363.5,2363.3,0.4231]
[1725992518709,0.42307,2363.6,2363.3,0.4231]
[1725992519000,1.05756,2363.8,2363.4,10.4]
[1725992519508,0.42308,2363.5,2363.4,10.4]
[1725992520412,0.42303,2363.8,2363.6,0.42306]
[1725992520617,0.42303,2363.8,2363.4,10.4]
[1725992520618,0.42306,2363.6,2363.5,0.3704]
[1725992520917,0.42304,2363.7,2363.5,0.79346]
[1725992521210,0.42306,2363.6,2363.5,0.3704]
[1725992521410,1.82915,2364.1,2363.5,0.3704]
[1725992521711,1.82915,2364.1,2363.6,0.42305]
[1725992521712,0.42303,2363.8,2363.6,0.42305]
[1725992521911,1.05747,2364.0,2363.5,0.3704]
[1725992522111,0.42308,2363.5,2363.4,10.4]
[1725992522416,10.37154724,2364.0,2363.4,10.4]
[1725992522616,1.05752,2363.9,2363.4,10.4]
[1725992522811,0.42308,2363.5,2363.4,10.4]
[1725992523116,0.42308,2363.5,2363.0,4.4874]
[1725992523117,0.42314,2363.2,2363.0,0.79356]
[1725992523313,0.42315,2363.1,2363.0,0.3704]
[1725992523813,0.42318,2362.9,2362.8,0.396]
[1725992524013,1.05786,2363.2,2362.8,0.81919]
[1725992524014,0.42317,2363.0,2362.8,0.81919]
[1725992524210,0.42314,2363.2,2363.0,0.42316]
[1725992524717,0.42315,2363.1,2362.9,0.42317]
[1725992524911,0.7686,2363.5,2362.8,0.42319]
[1725992524912,0.42316,2363.0,2362.8,0.42319]
[1725992525118,1.0578,2363.3,2362.8,0.4232]
[1725992525313,1.0578,2363.3,2362.6,0.42323]
[1725992525314,0.42321,2362.8,2362.6,0.42323]
[1725992525716,0.42322,2362.7,2362.5,0.42324]
[1725992526015,0.42321,2362.8,2362.6,0.42324]
[1725992526217,1.05795,2363.0,2362.3,0.3768]
[1725992526218,0.42322,2362.7,2362.3,0.3768]
[1725992526402,0.42321,2362.8,2362.6,0.42323]
[1725992526806,0.42322,2362.7,2362.6,0.42323]
[1725992527015,0.42322,2362.7,2362.5,0.42324]
[1725992527211,0.42321,2362.8,2362.6,0.42324]
[1725992527413,0.42322,2362.7,2362.6,0.42324]
[1725992527603,0.42322,2362.7,2362.5,0.42324]
[1725992527811,0.42322,2362.7,2362.6,0.42324]
[1725992528004,0.42321,2362.8,2362.6,0.42324]
[1725992528303,0.42322,2362.7,2362.6,0.42324]
[1725992528508,1.0579,2363.1,2362.7,0.42322]
[1725992528708,0.7686,2363.5,2362.5,1.05813]
[1725992529008,0.42315,2363.1,2362.6,1.0581]
[1725992529311,0.42317,2363.0,2362.9,0.42318]
[1725992529515,1.05783,2363.2,2362.8,0.42319]
[1725992529723,1.05778,2363.3,2362.7,11.21381]
[1725992529910,1.05789,2363.1,2362.7,11.21381]
[1725992530214,0.42319,2362.9,2362.8,0.4232]
[1725992530420,0.42319,2362.9,2362.8,4.6552]
[1725992530604,0.3912,2363.5,2362.8,10.232]
[1725992530804,1.05774,2363.4,2362.7,10.4]
[1725992531008,0.42319,2362.9,2362.8,0.4232]
[1725992531209,0.4232,2362.8,2362.7,10.4]
[1725992532123,0.42322,2362.7,2362.5,0.42324]
[1725992532323,0.42328,2362.4,2362.2,0.4233]
[1725992532527,1.4402,2362.9,2362.0,1.05837]
[1725992532823,1.0579,2363.1,2362.7,0.42321]
[1725992533121,1.0579,2363.1,2362.3,1.05823]
[1725992533122,0.42318,2363.0,2362.8,0.4232]
[1725992533417,11.06677844,2363.2,2362.8,0.42319]
[1725992533622,11.06677844,2363.2,2362.6,1.0581]
[1725992533818,0.42315,2363.1,2362.6,1.0581]
[1725992534121,0.42312,2363.3,2362.8,1.05801]
[1725992534430,0.42311,2363.3,2363.1,0.42313]
[1725992534616,0.42311,2363.3,2362.9,0.4059]
[1725992534617,0.42311,2363.3,2363.2,0.80223]
[1725992534813,0.42311,2363.3,2363.2,0.3791]
[1725992535114,0.42315,2363.1,2363.0,0.3819]
[1725992535319,0.42315,2363.1,2363.0,0.42316]
[1725992535523,0.42315,2363.1,2362.9,0.42317]
[1725992535823,1.05778,2363.3,2362.7,0.388]
[1725992535824,0.42315,2363.2,2362.7,0.388]
[1725992536022,1.05778,2363.3,2363.2,0.42313]
[1725992536023,0.42312,2363.3,2363.2,0.42313]
[1725992536422,1.05764,2363.7,2363.2,4.2312]
[1725992536613,0.42307,2363.6,2363.4,0.42309]
[1725992536809,0.42309,2363.4,2363.3,0.388]
[1725992537421,0.42309,2363.5,2363.4,0.42309]
[1725992537613,0.42309,2363.5,2363.3,0.8111]
[1725992537815,0.42316,2363.1,2362.7,1.43995]
[1725992538014,0.42316,2363.1,2363.0,0.42316]
[1725992538015,0.42315,2363.1,2363.0,0.42316]
[1725992538216,0.42315,2363.1,2363.0,10.4]
[1725992538816,0.42316,2363.0,2362.9,0.42318]
[1725992539018,0.42316,2363.0,2362.9,4.232]
[1725992539214,1.0578,2363.3,2362.9,4.232]
[1725992539215,0.42316,2363.1,2362.9,4.232]
[1725992539419,0.42316,2363.1,2363.0,10.4]
[1725992539920,0.42316,2363.1,2362.9,0.42317]
[1725992540120,0.42318,2363.0,2362.7,0.7543]
[1725992540423,0.42318,2363.0,2362.9,0.42318]
[1725992540622,1.05778,2363.3,2362.7,0.7543]
[1725992540824,0.42319,2362.9,2362.7,0.7543]
[1725992541027,0.42316,2363.1,2362.7,0.7543]
[1725992541324,0.42317,2363.0,2362.8,0.42319]
[1725992541722,1.05785,2363.2,2362.9,0.42318]
[1725992541723,0.42316,2363.1,2362.9,0.42318]
[1725992541922,0.404,2363.5,2362.8,1.05801]
[1725992542118,1.05767,2363.6,2363.2,0.42311]
[1725992542314,0.4012,2363.9,2363.0,4.06]
[1725992542520,6.11525819,2364.2,2363.7,0.42303]
[1725992542521,1.05739,2364.2,2363.7,0.42303]
[1725992542821,0.42301,2363.9,2363.8,0.3694]
[1725992543211,4.2304,2363.9,2363.4,0.4049]
[1725992543424,0.42305,2363.7,2363.5,0.79246]
[1725992543621,0.42306,2363.6,2363.5,0.3694]
[1725992543825,0.42309,2363.4,2363.2,0.42312]
[1725992544025,12.52150907,2363.9,2363.1,0.79064]
[1725992544230,1.05768,2363.6,2363.1,0.3675]
[1725992544523,1.05765,2363.7,2363.1,0.3675]
[1725992544524,0.42313,2363.2,2363.1,0.3675]
[1725992545929,0.42317,2363.0,2362.8,0.4232]
[1725992546233,0.42312,2363.3,2363.0,0.42315]
[1725992546426,1.05774,2363.4,2362.9,0.42317]
[1725992546640,0.42314,2363.2,2362.9,0.42318]
[1725992546817,0.42314,2363.2,2362.8,0.3675]
[1725992547128,0.42315,2363.1,2362.8,0.79069]
[1725992547335,0.42318,2362.9,2362.8,0.3675]
[1725992547831,0.42318,2362.9,2362.6,10.4]
[1725992548039,0.42322,2362.8,2362.4,0.81306]
[1725992548217,0.4009,2363.3,2362.5,0.42324]
[1725992548424,10.51792076,2363.1,2362.6,0.42323]
[1725992548733,0.42317,2363.0,2362.6,0.42323]
[1725992548932,0.42318,2362.9,2362.5,10.82324]
[1725992549230,0.42319,2362.9,2362.5,10.82324]
[1725992549420,0.4232,2362.8,2362.5,10.4]
[1725992549622,0.42322,2362.8,2362.5,10.4]
[1725992549825,0.42323,2362.7,2362.5,10.4]
[1725992550418,4.2328,2362.7,2362.1,4.117]
[1725992550623,0.42326,2362.5,2362.2,0.82811]
[1725992550831,0.42325,2362.6,2362.2,0.4048]
[1725992551028,10.59150261,2362.8,2362.2,0.4048]
[1725992551224,2.62663382,2363.3,2362.3,0.42328]
[1725992551225,5.68465819,2363.2,2362.3,0.42328]
[1725992551427,1.05796,2362.9,2362.2,0.8281]
[1725992551635,0.42325,2362.6,2362.2,0.4048]
[1725992551829,0.42325,2362.5,2362.2,0.4048]
[1725992552028,0.42325,2362.5,2362.2,0.82811]
[1725992552029,0.42326,2362.5,2362.2,0.82811]
[1725992552236,0.42327,2362.4,2362.2,0.4048]
[1725992552531,0.42329,2362.3,2362.2,0.4048]
[1725992552832,0.42328,2362.4,2362.2,0.4048]
[1725992553627,0.42326,2362.5,2362.3,4.2328]
[1725992553827,0.42326,2362.5,2362.2,0.8281]
[1725992554130,0.42328,2362.4,2362.2,0.8281]
[1725992554431,0.42329,2362.4,2362.2,0.4048]
[1725992554631,0.42329,2362.3,2362.2,0.4048]
[1725992554829,0.42328,2362.4,2362.2,0.82811]
[1725992555022,0.42328,2362.4,2362.2,0.4048]
[1725992555219,0.42329,2362.3,2362.2,0.4048]
[1725992556124,1.62465819,2362.7,2361.9,10.804]
[1725992556328,1.05814,2362.5,2361.9,11.22735]
[1725992556529,0.42333,2362.1,2361.9,11.22735]
[1725992557237,1.62465819,2362.5,2362.1,0.42332]
[1725992557429,0.42326,2362.5,2362.3,0.42328]
[1725992557629,0.42325,2362.5,2362.4,0.7706]
[1725992558028,0.42325,2362.6,2362.4,5.42667]
[1725992558224,0.42321,2362.8,2362.6,0.42322]
[1725992558430,0.42322,2362.7,2362.5,0.42324]
[1725992558624,2.01375819,2363.1,2362.4,0.7706]
[1725992558832,0.42321,2362.8,2362.6,0.42323]
[1725992559033,0.42331,2362.2,2362.1,4.54031]
[1725992559340,0.42333,2362.1,2362.0,0.3712]
[1725992559940,0.42339,2361.8,2361.6,0.4234]
[1725992560127,1.05837,2362.0,2361.6,0.738]
[1725992560438,0.4234,2361.7,2361.6,0.738]
[1725992561135,0.4234,2361.7,2361.2,0.42349]
[1725992561336,0.4234,2361.7,2361.2,0.7474]
[1725992561337,0.42346,2361.4,2361.2,0.7474]
[1725992561733,0.42342,2361.6,2361.3,0.42346]
[1725992562340,0.4234,2361.7,2361.4,0.42345]
[1725992562736,0.42342,2361.6,2361.3,0.42346]
[1725992563335,0.42344,2361.5,2361.2,0.7474]
[1725992563841,2.68306819,2361.9,2361.2,0.7474]
[1725992564138,2.68306819,2361.9,2361.0,10.4]
[1725992564139,4.06,2361.6,2361.0,10.4]
[1725992564447,0.42348,2361.3,2361.0,10.4]
[1725992564742,0.42349,2361.2,2361.0,10.4]
[1725992564937,2.01775819,2361.5,2360.5,0.3676]
[1725992565139,1.05882,2361.0,2360.3,0.3753]
[1725992565339,0.42359,2360.7,2360.4,10.4]
[1725992565836,0.3931,2360.9,2360.4,10.4]
[1725992566143,0.42361,2360.5,2360.4,10.4]
[1725992566332,0.42361,2360.5,2359.8,0.42373]
[1725992566333,10.49213861,2360.8,2360.1,0.42368]
[1725992566529,0.3931,2360.9,2360.1,0.42368]
[1725992566739,0.4236,2360.6,2360.2,0.42367]
[1725992566930,0.3931,2360.9,2360.4,0.42362]
[1725992566931,0.42356,2360.8,2360.4,0.42362]
[1725992567137,0.42357,2360.8,2360.5,0.3753]
[1725992567332,0.3931,2360.9,2360.5,0.3753]
[1725992567649,0.38,2361.1,2360.5,0.3753]
[1725992567835,0.42356,2360.8,2360.5,0.3753]
[1725992568035,10.42011393,2361.0,2360.5,0.3753]
[1725992568238,1.05877,2361.1,2360.5,0.3753]
[1725992568430,5.52192,2361.3,2360.5,0.3753]
[1725992568431,10.71083512,2361.2,2360.5,0.3753]
[1725992568637,5.52192,2361.3,2360.5,0.3753]
[1725992568638,0.42355,2360.9,2360.5,0.3753]
[1725992568840,1.05873,2361.2,2360.5,0.3753]
[1725992569038,0.42357,2360.8,2360.5,0.3753]
[1725992569440,10.71083512,2361.2,2360.5,0.7989]
[1725992569749,0.42355,2360.9,2360.5,0.3753]
[1725992570247,11.63631666,2361.2,2360.5,0.3753]
[1725992570548,11.63631666,2361.2,2360.5,0.79891]
[1725992570549,0.42354,2360.9,2360.5,0.79891]
[1725992570840,0.42359,2360.7,2360.5,0.3753]
[1725992571036,1.05886,2360.9,2360.5,0.3753]
[1725992571236,11.63631666,2361.2,2360.5,0.3753]
[1725992571237,1.05877,2361.1,2360.5,0.3753]
[1725992571438,0.42357,2360.8,2360.5,0.3753]
[1725992571843,0.42353,2361.0,2360.6,0.42359]
[1725992572045,10.74693892,2361.1,2360.5,0.79891]
[1725992572347,10.74693892,2361.1,2360.5,0.3753]
[1725992572542,0.42353,2361.0,2360.6,0.42358]
[1725992572733,0.42354,2360.9,2360.5,0.7989]
[1725992573649,0.42355,2360.9,2360.5,0.7989]
[1725992573846,11.80574892,2361.1,2360.5,0.3753]
[1725992574242,0.42355,2360.9,2360.5,0.7989]
[1725992574549,0.42354,2361.0,2360.6,0.42359]
[1725992574744,0.42354,2360.9,2360.6,0.42359]
[1725992575044,10.74693892,2361.1,2360.5,0.3753]
[1725992575250,0.42355,2360.9,2360.5,0.7989]
[1725992575641,0.42357,2360.8,2360.5,0.7989]
[1725992576041,0.42359,2360.7,2360.5,0.3753]
[1725992576242,0.42357,2360.8,2360.5,0.79891]
[1725992577146,0.42358,2360.7,2360.5,0.3753]
[1725992577448,0.42357,2360.8,2360.5,0.79891]
[1725992577645,0.42357,2360.8,2360.5,0.7989]
[1725992578241,0.42359,2360.6,2360.5,0.3753]
[1725992578749,0.42363,2360.4,2360.3,10.7707]
[1725992578941,5.11895,2360.7,2360.0,0.3884]
[1725992579144,0.42367,2360.2,2360.0,0.3884]
[1725992579443,11.54497712,2360.8,2359.9,10.4]
[1725992579444,5.11911,2360.4,2359.9,10.4]
[1725992579643,0.4237,2360.0,2359.9,10.4]
[1725992580151,0.4028,2360.3,2359.6,0.3664]
[1725992580343,0.42367,2360.2,2359.6,0.3664]
[1725992580650,0.42367,2360.2,2359.9,0.42371]
[1725992580843,0.4028,2360.3,2359.8,0.42373]
[1725992581039,0.42368,2360.2,2359.9,0.79382]
[1725992581243,0.42368,2360.2,2359.9,0.79381]
[1725992581443,0.42369,2360.1,2359.9,0.3701]
[1725992581843,0.4237,2360.0,2359.9,0.3701]
[1725992582043,0.4028,2360.3,2359.9,0.3701]
[1725992582443,0.42369,2360.1,2359.9,0.3701]
[1725992582746,0.4028,2360.3,2359.9,0.3701]
[1725992582947,0.82646,2360.3,2360.0,0.4237]
[1725992583149,0.42366,2360.3,2360.0,0.4237]
[1725992583344,0.42367,2360.2,2359.9,0.79381]
[1725992583543,0.42368,2360.2,2359.9,0.79382]
[1725992584050,0.42366,2360.3,2360.0,0.4237]
[1725992584347,0.42364,2360.4,2360.1,0.42368]
[1725992584550,0.42362,2360.5,2359.9,0.3701]
[1725992584752,0.42363,2360.4,2360.1,0.42367]
[1725992585048,0.3807,2360.7,2359.9,0.3701]
[1725992585240,0.42364,2360.4,2360.1,0.42368]
[1725992585443,0.3807,2360.7,2359.9,0.3701]
[1725992585638,0.3807,2360.7,2360.2,0.42366]
[1725992585844,0.3807,2360.7,2359.9,0.3701]
[1725992586045,0.42362,2360.5,2360.3,0.42365]
[1725992586540,0.42362,2360.5,2360.1,0.3795]
[1725992586739,0.42362,2360.5,2360.2,0.42367]
[1725992586940,0.42362,2360.5,2360.3,0.42365]
[1725992587153,0.42363,2360.4,2360.2,0.42366]
[1725992587546,0.42365,2360.3,2360.1,0.80318]
[1725992587951,1.05914,2360.3,2359.9,0.3701]
[1725992588251,1.05899,2360.6,2360.0,0.4237]
[1725992588252,0.42368,2360.2,2360.0,0.4237]
[1725992588968,1.05899,2360.6,2359.9,0.3701]
[1725992589147,1.05899,2360.6,2360.1,0.42367]
[1725992589346,0.42367,2360.2,2360.0,0.4237]
[1725992589546,4.4407,2360.7,2359.9,0.3701]
[1725992589547,0.4237,2360.1,2359.9,0.3701]
[1725992589851,0.4237,2360.1,2359.9,0.79381]
[1725992590253,0.4237,2360.0,2359.9,0.3701]
[1725992590451,0.42374,2359.8,2359.7,10.4]
[1725992590758,0.42373,2359.9,2359.7,10.82375]
[1725992592254,1.05925,2360.1,2359.8,0.42374]
[1725992592460,0.42372,2360.0,2359.6,0.7755]
[1725992592656,0.42367,2360.2,2359.7,1.05939]
[1725992592958,0.4237,2360.1,2359.9,0.42371]
[1725992593746,1.05908,2360.4,2359.6,11.1755]
[1725992594050,0.42376,2359.7,2359.6,11.59927]
[1725992594248,1.05922,2360.1,2359.7,0.42376]
[1725992594448,0.42376,2359.7,2359.6,0.396]
[1725992594652,0.4238,2359.5,2359.3,0.42382]
[1725992594853,0.42378,2359.6,2359.4,0.42381]
[1725992595058,0.4238,2359.5,2359.3,0.42382]
[1725992595256,0.42379,2359.6,2359.4,0.42381]
[1725992595452,0.7528,2360.0,2359.2,10.4]
[1725992595651,0.42373,2359.9,2359.7,0.42376]
[1725992595851,0.79571,2360.0,2359.8,0.42373]
[1725992596153,0.42373,2359.9,2359.7,0.42375]
[1725992596949,1.05913,2360.3,2359.8,0.389]
[1725992597149,1.05913,2360.3,2359.9,0.42372]
[1725992597347,0.42367,2360.2,2360.0,0.4237]
[1725992597551,0.42364,2360.4,2360.2,0.42367]
[1725992597750,0.42365,2360.3,2359.8,1.1548]
[1725992597951,0.42364,2360.4,2360.2,0.42366]
[1725992598163,0.42365,2360.3,2360.1,0.42367]
[1725992598561,0.42364,2360.4,2360.2,0.42366]
[1725992598761,0.42364,2360.4,2359.8,2.21413]
[1725992598762,0.42362,2360.5,2360.3,0.42364]
[1725992598963,0.372,2360.7,2360.3,0.42364]
[1725992599163,4.102,2361.3,2360.4,0.3867]
[1725992599460,1.05868,2361.3,2360.5,0.4236]
[1725992599660,0.42359,2360.7,2360.4,1.58202]
[1725992599865,10.35960858,2361.2,2360.4,1.1584]
[1725992600068,0.42361,2360.5,2360.4,0.3867]
[1725992601169,0.42365,2360.3,2360.2,0.3655]
[1725992601563,1.43275,2360.7,2360.2,0.3655]
[1725992601859,0.42361,2360.5,2360.3,10.4]
[1725992602062,0.42363,2360.4,2360.3,10.4]
[1725992604263,0.42366,2360.3,2360.0,0.8104]
[1725992604763,0.42366,2360.3,2360.1,10.4]
[1725992605679,0.42366,2360.3,2360.0,0.8104]
[1725992605876,0.42367,2360.2,2360.0,0.3867]
[1725992606177,12.34272044,2360.6,2360.0,0.3867]
[1725992606475,0.42368,2360.1,2360.0,0.3867]
[1725992606667,0.4237,2360.0,2359.9,0.3655]
[1725992606871,1.05923,2360.1,2359.7,11.1519]
[1725992607076,0.42374,2359.8,2359.7,10.785]
[1725992607281,0.42373,2359.9,2359.7,10.785]
[1725992607471,0.42374,2359.8,2359.7,10.785]
[1725992608174,0.42374,2359.8,2359.7,0.385]
[1725992610176,0.42374,2359.8,2359.7,0.17658113]
[1725992610375,1.62465819,2360.0,2359.8,0.42373]
[1725992610569,0.42371,2360.0,2359.9,0.3983]
[1725992610978,0.4237,2360.0,2359.9,0.3983]
[1725992611376,0.42369,2360.1,2359.9,0.3983]
[1725992611567,0.42367,2360.2,2359.9,0.3983]
[1725992611768,0.42366,2360.3,2360.1,0.42368]
[1725992612284,1.62465819,2360.4,2360.0,0.4034]
[1725992612486,0.42367,2360.2,2360.0,0.82709]
[1725992612776,1.62465819,2360.4,2360.0,0.82709]
[1725992612777,1.62465819,2360.4,2360.1,0.42368]
[1725992612980,1.62465819,2360.5,2360.0,0.4034]
[1725992613183,0.42365,2360.3,2360.1,0.42367]
[1725992613881,2.04829819,2360.4,2360.0,0.4034]
[1725992614182,1.62465819,2360.5,2360.4,0.42363]
[1725992614372,1.62465819,2360.8,2360.2,1.05917]
[1725992614572,1.62465819,2360.9,2360.3,1.03175916]
[1725992614778,2.22573382,2361.1,2360.4,1.13765367]
[1725992614779,2.04817819,2361.1,2360.4,1.13765367]
[1725992614972,2.04817819,2361.1,2360.8,0.42355]
[1725992615175,1.62465819,2361.2,2360.4,2.16617132]
[1725992615376,2.04817819,2361.1,2360.8,0.42355]
[1725992615683,0.42353,2361.0,2360.9,10.4]
[1725992616285,0.42353,2361.0,2360.9,14.6352]
[1725992616482,0.42351,2361.1,2360.9,14.6352]
[1725992616674,1.62465819,2361.2,2360.9,15.05874]
[1725992616879,0.42352,2361.1,2360.9,10.4]
[1725992617385,0.42352,2361.1,2360.9,14.6352]
[1725992617885,1.62465819,2361.3,2361.0,4.2352]
[1725992618083,0.42348,2361.3,2360.9,14.6352]
[1725992618388,0.42346,2361.4,2361.2,0.42348]
[1725992618683,1.62465819,2361.6,2361.1,0.42349]
[1725992618684,0.42347,2361.3,2361.1,0.42349]
[1725992618891,0.42347,2361.3,2361.0,0.42351]
[1725992619087,2.68323819,2361.6,2361.1,0.4235]
[1725992619283,0.42346,2361.4,2361.1,0.4235]
[1725992619583,0.42346,2361.4,2361.2,0.42348]
[1725992620586,0.42346,2361.4,2361.1,0.4235]
[1725992621187,0.42346,2361.4,2361.2,0.42348]
[1725992621382,2.68323819,2361.6,2360.9,10.4]
[1725992621578,2.68323819,2361.6,2361.1,0.42349]
[1725992621579,0.42347,2361.4,2361.1,0.42349]
[1725992622089,0.42347,2361.4,2361.2,0.42349]
[1725992622479,0.42347,2361.3,2361.2,0.42349]
[1725992622784,0.42347,2361.3,2361.1,0.42349]
[1725992622985,0.42346,2361.4,2361.2,0.42348]
[1725992623373,0.42347,2361.3,2361.2,0.42348]
[1725992623777,0.42347,2361.3,2361.2,4.65868]
[1725992624379,0.42347,2361.3,2361.2,4.2352]
[1725992627694,0.42347,2361.3,2361.1,0.4235]
[1725992627885,0.42347,2361.3,2361.1,4.6587]
[1725992628391,0.42346,2361.4,2361.1,4.2352]
[1725992628582,1.62465819,2362.3,2361.4,1.05864]
[1725992628789,1.0582,2362.4,2361.8,3.3]
[1725992628993,0.42341,2361.7,2361.5,0.7621]
[1725992629189,1.05841,2361.9,2361.5,0.7621]
[1725992629383,0.42341,2361.7,2361.5,1.18553]
[1725992629595,0.42339,2361.8,2361.6,0.42341]
[1725992629889,0.42338,2361.9,2361.6,0.82411]
[1725992630096,0.42338,2361.8,2361.6,0.82411]
[1725992630395,0.42337,2361.9,2361.7,0.4234]
[1725992630691,4.35834,2362.1,2361.6,0.4007]
[1725992630892,0.42339,2361.8,2361.6,0.82411]
[1725992631190,0.3961,2362.0,2361.7,0.4234]
[1725992631492,1.0583,2362.2,2361.6,0.4007]
[1725992631687,0.42336,2362.0,2361.6,3.7007]
[1725992631889,0.42334,2362.1,2361.8,0.42338]
[1725992632086,0.42335,2362.0,2361.7,0.42339]
[1725992632780,0.42335,2362.0,2361.8,0.42337]
[1725992632981,1.05832,2362.1,2361.6,0.4007]
[1725992633188,0.42338,2361.8,2361.6,0.8241]
[1725992633387,0.42337,2361.9,2361.6,0.8241]
[1725992633585,0.4234,2361.7,2361.6,0.4007]
[1725992633781,0.3961,2362.4,2361.6,7.9351]
[1725992633985,0.3961,2362.4,2361.9,3.72336]
[1725992634188,0.42331,2362.2,2361.9,0.42336]
[1725992634789,0.4233,2362.3,2361.9,0.42336]
[1725992634989,0.42331,2362.2,2361.8,0.42337]
[1725992635199,0.4233,2362.3,2361.8,0.42337]
[1725992635392,0.42332,2362.2,2361.9,10.4]
[1725992635583,0.42337,2361.9,2361.6,0.4007]
[1725992635891,0.42336,2362.0,2361.6,0.4007]
[1725992636190,0.42337,2361.9,2361.6,0.4007]
[1725992636791,3.3,2362.1,2361.6,0.4007]
[1725992636992,0.42338,2361.9,2361.6,0.4007]
[1725992637192,3.3,2362.1,2361.6,0.4007]
[1725992637502,0.42338,2361.9,2361.6,0.4007]
[1725992638393,0.80088,2361.9,2361.6,0.4007]
[1725992638692,4.42891985,2362.5,2361.6,0.4007]
[1725992638693,0.3892,2362.7,2361.7,4.2344]
[1725992638899,0.7755,2362.5,2362.0,0.42333]
[1725992639095,0.42328,2362.4,2362.0,0.42333]
[1725992639291,1.19877,2362.5,2362.1,0.42332]
[1725992639496,0.7755,2362.5,2362.0,0.42333]
[1725992639696,1.19876,2362.5,2362.0,0.42333]
[1725992640197,1.19876,2362.5,2362.1,0.42332]
[1725992642193,0.42322,2362.7,2362.3,0.42328]
[1725992642698,0.42324,2362.6,2362.2,11.5958]
[1725992642902,0.42324,2362.6,2362.3,0.42329]
[1725992643399,0.42323,2362.7,2362.2,11.1725]
[1725992643603,10.66163674,2362.9,2362.3,3.3]
[1725992643898,0.42319,2362.9,2362.5,3.72324]
[1725992644300,0.42319,2362.9,2362.5,3.3]